{"text_format":"1","workbook":"xlsx","n_sheets":2,"sheets":["Joc","Scor"],"not_rendered":{"charts":0,"images":0,"macros":1,"external_links":0,"defined_names":0,"comments":0,"pivot_tables":0},"unopened":[],"bounds":{"document_bytes":16777216,"sheet_cells":100000,"rows_first":2000,"rows_last":500,"rows_between":2000,"halvings":0,"cell_chars":16384,"cell_head_chars":4096},"cells_cut":0,"cells_raw":0,"read":"whole","date_system":"1900"}

{"sheet":"Joc","index":0,"n_rows":33,"n_cols":36,"rows_kept":33,"cut":false,"hidden":false,"merged":[[3,1,3,35],[32,1,32,35],[4,1,4,3],[1,1,1,35]]}
[]
[null,"RECAPITULARE TABLA INMULTIRII"]
[]
[null,"Completeaza rezultatul in coloana indicata de sageata si afla cat de bine ai invatat tabla inmultirii ! \nPunctajul maxim care poate fi obtinut, daca raspunzi corect la toate intrebarile, este de 80 puncte + 20 puncte din oficiu = 100 puncte"]
[null,"SUCCES !"]
[null,null,null,null,null,null,null,null,"PUNCTAJ",null,null,null,null,null,null,null,null,"PUNCTAJ",null,null,null,null,null,null,null,null,"PUNCTAJ",null,null,null,null,null,null,null,null,"PUNCTAJ"]
[]
[null,null,2,"x",2,"=",null,null,{"$f":"IF(G8=(C8*E8), 1, 0)","v":0},null,null,5,"x",5,"=",null,null,{"$f":"IF(P8=(L8*N8), 1, 0)","v":0},null,null,7,"x",7,"=",null,null,{"$f":"IF(Y8=(U8*W8), 1, 0)","v":0},null,null,3,"x",6,"=",null,null,{"$f":"IF(AH8=(AD8*AF8), 1, 0)","v":0}]
[null,null,5,"x",8,"=",null,null,0,null,null,2,"x",3,"=",null,null,0,null,null,3,"x",8,"=",null,null,0,null,null,8,"x",3,"=",null,null,0]
[null,null,4,"x",5,"=",null,null,0,null,null,5,"x",9,"=",null,null,0,null,null,2,"x",4,"=",null,null,0,null,null,4,"x",2,"=",null,null,0]
[null,null,9,"x",8,"=",null,null,0,null,null,3,"x",7,"=",null,null,0,null,null,5,"x",6,"=",null,null,0,null,null,2,"x",5,"=",null,null,0]
[null,null,3,"x",9,"=",null,null,0,null,null,7,"x",2,"=",null,null,0,null,null,4,"x",4,"=",null,null,0,null,null,5,"x",7,"=",null,null,0]
[null,null,10,"x",7,"=",null,null,0,null,null,9,"x",9,"=",null,null,0,null,null,6,"x",3,"=",null,null,0,null,null,6,"x",5,"=",null,null,0]
[null,null,7,"x",4,"=",null,null,0,null,null,6,"x",4,"=",null,null,0,null,null,8,"x",2,"=",null,null,0,null,null,10,"x",2,"=",null,null,0]
[null,null,4,"x",4,"=",null,null,0,null,null,4,"x",3,"=",null,null,0,null,null,7,"x",5,"=",null,null,0,null,null,9,"x",6,"=",null,null,0]
[null,null,6,"x",2,"=",null,null,0,null,null,8,"x",5,"=",null,null,0,null,null,9,"x",7,"=",null,null,0,null,null,7,"x",3,"=",null,null,0]
[null,null,8,"x",4,"=",null,null,0,null,null,10,"x",4,"=",null,null,0,null,null,10,"x",3,"=",null,null,0,null,null,8,"x",8,"=",null,null,0]
[null,null,null,null,null,null,null,null,{"$f":"SUM(I8:I17)","v":0},null,null,null,null,null,null,null,null,{"$f":"SUM(R8:R17)","v":0},null,null,null,null,null,null,null,null,{"$f":"SUM(AA8:AA17)","v":0},null,null,null,null,null,null,null,null,{"$f":"SUM(AJ8:AJ17)","v":0}]
[]
[null,null,null,null,null,null,null,null,"PUNCTAJ",null,null,null,null,null,null,null,null,"PUNCTAJ",null,null,null,null,null,null,null,null,"PUNCTAJ",null,null,null,null,null,null,null,null,"PUNCTAJ"]
[]
[null,null,10,"x",9,"=",null,null,{"$f":"IF(G22=(C22*E22), 1, 0)","v":0},null,null,6,"x",8,"=",null,null,{"$f":"IF(P22=(L22*N22), 1, 0)","v":0},null,null,3,"x",3,"=",null,null,{"$f":"IF(Y22=(U22*W22), 1, 0)","v":0},null,null,5,"x",5,"=",null,null,{"$f":"IF(AH22=(AD22*AF22), 1, 0)","v":0}]
[null,null,9,"x",2,"=",null,null,0,null,null,1,"x",7,"=",null,null,0,null,null,4,"x",8,"=",null,null,0,null,null,4,"x",9,"=",null,null,0]
[null,null,5,"x",3,"=",null,null,0,null,null,4,"x",6,"=",null,null,0,null,null,5,"x",4,"=",null,null,0,null,null,8,"x",8,"=",null,null,0]
[null,null,4,"x",7,"=",null,null,0,null,null,10,"x",8,"=",null,null,0,null,null,8,"x",9,"=",null,null,0,null,null,6,"x",6,"=",null,null,0]
[null,null,2,"x",6,"=",null,null,0,null,null,9,"x",3,"=",null,null,0,null,null,6,"x",7,"=",null,null,0,null,null,9,"x",4,"=",null,null,0]
[null,null,1,"x",6,"=",null,null,0,null,null,2,"x",7,"=",null,null,0,null,null,9,"x",5,"=",null,null,0,null,null,7,"x",7,"=",null,null,0]
[null,null,6,"x",9,"=",null,null,0,null,null,3,"x",4,"=",null,null,0,null,null,2,"x",8,"=",null,null,0,null,null,10,"x",5,"=",null,null,0]
[null,null,3,"x",5,"=",null,null,0,null,null,5,"x",2,"=",null,null,0,null,null,10,"x",10,"=",null,null,0,null,null,2,"x",9,"=",null,null,0]
[null,null,7,"x",6,"=",null,null,0,null,null,7,"x",9,"=",null,null,0,null,null,7,"x",8,"=",null,null,0,null,null,7,"x",9,"=",null,null,0]
[null,null,8,"x",7,"=",null,null,0,null,null,8,"x",6,"=",null,null,0,null,null,10,"x",6,"=",null,null,0,null,null,3,"x",2,"=",null,null,0]
[null,null,null,null,null,null,null,null,{"$f":"SUM(I22:I31)","v":0},null,null,null,null,null,null,null,null,{"$f":"SUM(R22:R31)","v":0},null,null,null,null,null,null,null,null,{"$f":"SUM(AA22:AA31)","v":0},null,null,null,null,null,null,null,null,{"$f":"SUM(AJ22:AJ31)","v":0}]
[null,{"$f":"IF(SUM(I18,R18,AA18,AJ18,I32,R32,AA32,AJ32)<56,\"Ai obtinut \"&SUM(I18,R18,AA18,AJ18,I32,R32,AA32,AJ32)+20 &\" puncte din 100 posibile! Mai exerseaza pentru a fi si mai bun !\",IF(SUM(I18,R18,AA18,AJ18,I32,R32,AA32,AJ32)<72,\"Ai obtinut \"&SUM(I18,R18,AA18,AJ18,I32,R32,AA32,AJ32)+20&\" puncte din 100 posibile! Esti destul de bun, dar poti fi si mai bun !\",IF(SUM(I18,R18,AA18,AJ18,I32,R32,AA32,AJ32)=72,\"Ai obtinut 92 puncte din 100 posibile ! Esti foarte bun!\",\"Ai obtinut 100 puncte din 100 posibile ! Esti extraordinar !\")))","v":"Ai obtinut 20 puncte din 100 posibile! Mai exerseaza pentru a fi si mai bun !"}]

{"sheet":"Scor","index":1,"n_rows":6,"n_cols":3,"rows_kept":6,"cut":false,"hidden":false,"merged":[[1,1,1,2],[3,1,3,2]]}
[]
[null,"TABLA INMULTIRII"]
[]
[null,"Acestea sunt punctajele obtinute de tine ! Colegii tai ce punctaj au obtinut ?"]
[]
[null,"Data","Punctaj"]